[Event "*** Titled Tuesday Blitz"]
[Site "Chess.com"]
[Date "2018.09.04"]
[Round "9"]
[White "tsakos2731"]
[Black "metra93"]
[Result "1/2-1/2"]
[WhiteElo "2624"]
[BlackElo "2520"]
[TimeControl "180+2"]
[EndTime "15:39:43 PDT"]
[Termination "Game drawn by repetition"]

1. d4 {[%clk 0:02:59.2]} 1... d5 {[%clk 0:02:56.6]} 2. c4 {[%clk 0:03:00.2]}
2... e6 {[%clk 0:02:50.5]} 3. Nc3 {[%clk 0:03:00]} 3... Nf6 {[%clk 0:02:50.9]}
4. cxd5 {[%clk 0:03:00.6]} 4... exd5 {[%clk 0:02:51.3]} 5. Bg5 {[%clk
0:03:00.9]} 5... c6 {[%clk 0:02:52.4]} 6. e3 {[%clk 0:03:01.5]} 6... Be7 {[%clk
0:02:52]} 7. Bd3 {[%clk 0:02:59.5]} 7... Nbd7 {[%clk 0:02:52.1]} 8. Qc2 {[%clk
0:02:54.6]} 8... O-O {[%clk 0:02:51.8]} 9. h3 {[%clk 0:02:53.1]} 9... Re8 {[%clk
0:02:52]} 10. Nf3 {[%clk 0:02:51.4]} 10... Nf8 {[%clk 0:02:48.6]} 11. Bf4 {[%clk
0:02:48.5]} 11... Ng6 {[%clk 0:02:36.4]} 12. Bg3 {[%clk 0:02:49.5]} 12... Bd6
{[%clk 0:02:36]} 13. Bxd6 {[%clk 0:02:50.2]} 13... Qxd6 {[%clk 0:02:37.9]} 14.
O-O-O {[%clk 0:02:51.4]} 14... b5 {[%clk 0:02:30.5]} 15. g4 {[%clk 0:02:48.3]}
15... a5 {[%clk 0:02:19.7]} 16. Kb1 {[%clk 0:02:45.4]} 16... Ba6 {[%clk
0:02:15.1]} 17. g5 {[%clk 0:02:43.4]} 17... b4 {[%clk 0:02:00.8]} 18. Bxa6
{[%clk 0:02:40.6]} 18... Rxa6 {[%clk 0:01:52.4]} 19. Na4 {[%clk 0:02:41.3]}
19... Ne4 {[%clk 0:01:51.1]} 20. h4 {[%clk 0:02:41.9]} 20... Qe6 {[%clk
0:01:38.1]} 21. h5 {[%clk 0:02:38.7]} 21... Qg4 {[%clk 0:01:22.4]} 22. hxg6
{[%clk 0:02:31.4]} 22... Qxf3 {[%clk 0:01:22.8]} 23. gxf7+ {[%clk 0:02:32.1]}
23... Qxf7 {[%clk 0:01:17.6]} 24. Nc5 {[%clk 0:02:32.9]} 24... Rb6 {[%clk
0:01:15]} 25. Nxe4 {[%clk 0:02:31.3]} 25... Rxe4 {[%clk 0:01:15.6]} 26. Rdg1
{[%clk 0:02:21.7]} 26... Qg6 {[%clk 0:01:10.5]} 27. b3 {[%clk 0:02:17.3]} 27...
Rb8 {[%clk 0:01:03.9]} 28. Kb2 {[%clk 0:02:13.6]} 28... Rf8 {[%clk 0:01:00.5]}
29. Rg3 {[%clk 0:02:08.7]} 29... Rf5 {[%clk 0:00:56.7]} 30. f4 {[%clk
0:02:07.6]} 30... Rf8 {[%clk 0:00:57.4]} 31. Rgh3 {[%clk 0:02:06.4]} 31... Kf7
{[%clk 0:00:49.8]} 32. Qf2 {[%clk 0:01:30.1]} 32... Rfe8 {[%clk 0:00:48.8]} 33.
Rg3 {[%clk 0:01:26.9]} 33... Qf5 {[%clk 0:00:47.1]} 34. Qc2 {[%clk 0:01:28.1]}
34... Qg6 {[%clk 0:00:39.8]} 35. f5 {[%clk 0:01:27.7]} 35... Qxf5 {[%clk
0:00:37.1]} 36. g6+ {[%clk 0:01:23.8]} 36... hxg6 {[%clk 0:00:38.7]} 37. Rhh3
{[%clk 0:01:18]} 37... Ke7 {[%clk 0:00:31.9]} 38. Qxc6 {[%clk 0:01:14.3]} 38...
Qf2+ {[%clk 0:00:28.5]} 39. Kb1 {[%clk 0:01:09.3]} 39... Qe1+ {[%clk 0:00:25.4]}
40. Kb2 {[%clk 0:01:10.2]} 40... Qd2+ {[%clk 0:00:25.3]} 41. Kb1 {[%clk
0:01:11.3]} 41... Qd1+ {[%clk 0:00:22.7]} 42. Kb2 {[%clk 0:01:09.6]} 42... Qd2+
{[%clk 0:00:23.4]} 43. Kb1 {[%clk 0:01:07.3]} 43... Qd1+ {[%clk 0:00:20.8]} 44.
Kb2 {[%clk 0:01:07.3]} 44... Qd2+ {[%clk 0:00:21.9]} 1/2-1/2

[Event "*** Titled Tuesday Blitz"]
[Site "Chess.com"]
[Date "2018.09.04"]
[Round "9"]
[White "Spring199"]
[Black "FMJoseHerrera"]
[Result "0-1"]
[WhiteElo "2233"]
[BlackElo "2410"]
[TimeControl "180+2"]
[EndTime "15:39:51 PDT"]
[Termination "FMJoseHerrera won by resignation"]

1. e4 {[%clk 0:03:01.9]} 1... c5 {[%clk 0:03:00.6]} 2. Nf3 {[%clk 0:03:02.3]}
2... e6 {[%clk 0:03:01.6]} 3. d4 {[%clk 0:03:02.7]} 3... cxd4 {[%clk 0:03:03.5]}
4. Nxd4 {[%clk 0:03:04.6]} 4... a6 {[%clk 0:03:04.9]} 5. Nc3 {[%clk 0:03:04.9]}
5... Qc7 {[%clk 0:03:06.2]} 6. g3 {[%clk 0:03:05.5]} 6... b5 {[%clk 0:03:06.3]}
7. Bg2 {[%clk 0:03:05]} 7... Bb7 {[%clk 0:03:07.7]} 8. O-O {[%clk 0:03:05.3]}
8... d6 {[%clk 0:03:08.7]} 9. h3 {[%clk 0:02:57.8]} 9... Nd7 {[%clk 0:03:08.9]}
10. Kh2 {[%clk 0:02:58.1]} 10... Ngf6 {[%clk 0:03:09]} 11. a3 {[%clk 0:02:54.4]}
11... Be7 {[%clk 0:03:09.5]} 12. f4 {[%clk 0:02:55]} 12... h5 {[%clk 0:03:09.9]}
13. Be3 {[%clk 0:02:51.2]} 13... Rc8 {[%clk 0:03:09.7]} 14. Qd3 {[%clk
0:02:23.1]} 14... Nc5 {[%clk 0:03:09.5]} 15. Qe2 {[%clk 0:02:19]} 15... Ncxe4
{[%clk 0:03:10.4]} 16. Nxe4 {[%clk 0:02:12.7]} 16... Nxe4 {[%clk 0:03:12.3]} 17.
Bg1 {[%clk 0:02:10.4]} 17... d5 {[%clk 0:02:59.1]} 18. a4 {[%clk 0:02:02]} 18...
bxa4 {[%clk 0:02:55.6]} 19. Rxa4 {[%clk 0:01:57.2]} 19... h4 {[%clk 0:02:56.4]}
20. g4 {[%clk 0:01:54.6]} 20... Ng3 {[%clk 0:02:50.9]} 21. Qe1 {[%clk
0:01:39.3]} 21... Nxf1+ {[%clk 0:02:51.1]} 22. Qxf1 {[%clk 0:01:39.9]} 22... Bd6
{[%clk 0:02:51.9]} 23. Be3 {[%clk 0:01:39.8]} 23... O-O {[%clk 0:02:51.4]} 24.
Kh1 {[%clk 0:01:36.1]} 24... Bc5 {[%clk 0:02:38.9]} 25. Qf2 {[%clk 0:01:35.8]}
25... Qb6 {[%clk 0:02:34.9]} 26. b3 {[%clk 0:01:23.3]} 26... Qc7 {[%clk
0:02:34.6]} 27. Qxh4 {[%clk 0:01:23.1]} 27... Bxd4 {[%clk 0:02:30.6]} 28. Rxd4
{[%clk 0:01:22.7]} 28... Qxc2 {[%clk 0:02:30.1]} 29. Rd2 {[%clk 0:01:03.9]}
29... Qxb3 {[%clk 0:02:27.9]} 30. Bd4 {[%clk 0:01:01.3]} 30... Qb1+ {[%clk
0:02:20.6]} 31. Kh2 {[%clk 0:01:00.9]} 31... Rc4 {[%clk 0:02:21.1]} 32. f5
{[%clk 0:00:53.7]} 32... Rxd4 {[%clk 0:02:15.3]} 33. Rxd4 {[%clk 0:00:53.9]}
33... exf5 {[%clk 0:02:15.8]} 34. gxf5 {[%clk 0:00:52.7]} 34... Qxf5 {[%clk
0:02:17.7]} 35. Rg4 {[%clk 0:00:53.2]} 35... Qe5+ {[%clk 0:02:17.7]} 36. Kh1
{[%clk 0:00:53]} 36... Rc8 {[%clk 0:02:15.5]} 37. Qh6 {[%clk 0:00:43.3]} 37...
a5 {[%clk 0:01:51.6]} 38. Bf3 {[%clk 0:00:37.2]} 38... a4 {[%clk 0:01:50.5]} 39.
Be2 {[%clk 0:00:20.9]} 39... d4+ {[%clk 0:01:44.7]} 40. Kg1 {[%clk 0:00:21.3]}
40... a3 {[%clk 0:01:37.7]} 41. Bd3 {[%clk 0:00:19.8]} 41... Qe3+ {[%clk
0:01:23.6]} 42. Qxe3 {[%clk 0:00:19.7]} 42... dxe3 {[%clk 0:01:25.5]} 43. Ra4
{[%clk 0:00:20.6]} 43... Rc1+ {[%clk 0:01:25.9]} 44. Kh2 {[%clk 0:00:21.1]}
44... Rc3 {[%clk 0:01:26.5]} 45. Bf5 {[%clk 0:00:19.5]} 45... g6 {[%clk
0:01:26.7]} 46. Bb1 {[%clk 0:00:18.9]} 46... e2 {[%clk 0:01:27.4]} 47. Re4
{[%clk 0:00:18.1]} 47... Bxe4 {[%clk 0:01:27.5]} 0-1

[Event "*** Titled Tuesday Blitz"]
[Site "Chess.com"]
[Date "2018.09.04"]
[Round "9"]
[White "AlexanderL"]
[Black "GadimbayliA"]
[Result "0-1"]
[WhiteElo "2806"]
[BlackElo "2702"]
[TimeControl "180+2"]
[EndTime "15:39:52 PDT"]
[Termination "GadimbayliA won by resignation"]

1. Nf3 {[%clk 0:03:01.9]} 1... Nf6 {[%clk 0:03:00.3]} 2. c4 {[%clk 0:03:02.6]}
2... e6 {[%clk 0:02:59.6]} 3. Nc3 {[%clk 0:03:02.9]} 3... Bb4 {[%clk 0:02:57.4]}
4. Qc2 {[%clk 0:03:01.9]} 4... O-O {[%clk 0:02:46.8]} 5. a3 {[%clk 0:03:01.5]}
5... Bxc3 {[%clk 0:02:47.4]} 6. Qxc3 {[%clk 0:03:03.4]} 6... b6 {[%clk
0:02:45.4]} 7. g3 {[%clk 0:03:02.9]} 7... Bb7 {[%clk 0:02:46.2]} 8. Bg2 {[%clk
0:03:03.4]} 8... c5 {[%clk 0:02:43.8]} 9. O-O {[%clk 0:03:01.4]} 9... Nc6 {[%clk
0:02:41.2]} 10. b4 {[%clk 0:03:00.3]} 10... d5 {[%clk 0:02:06.5]} 11. bxc5
{[%clk 0:02:53.7]} 11... d4 {[%clk 0:02:07]} 12. Qb2 {[%clk 0:02:54.5]} 12...
Ba6 {[%clk 0:01:52.3]} 13. cxb6 {[%clk 0:02:45.9]} 13... Bxc4 {[%clk 0:01:52.5]}
14. d3 {[%clk 0:02:43.1]} 14... Bd5 {[%clk 0:01:52.9]} 15. bxa7 {[%clk
0:02:08.9]} 15... Rxa7 {[%clk 0:01:49.7]} 16. Bd2 {[%clk 0:02:01.5]} 16... Qa8
{[%clk 0:01:48]} 17. Bb4 {[%clk 0:01:34.2]} 17... Rb8 {[%clk 0:01:44.6]} 18.
Rfb1 {[%clk 0:01:34.9]} 18... Ra4 {[%clk 0:01:27.8]} 19. Qc1 {[%clk 0:01:14.8]}
19... Rc8 {[%clk 0:01:23.6]} 20. Qe1 {[%clk 0:01:07.8]} 20... e5 {[%clk
0:01:17.8]} 21. Bh3 {[%clk 0:00:58]} 21... Rd8 {[%clk 0:01:13.1]} 22. Bc5 {[%clk
0:00:52.8]} 22... e4 {[%clk 0:01:02.6]} 23. dxe4 {[%clk 0:00:52.3]} 23... Nxe4
{[%clk 0:01:00.4]} 24. Bb6 {[%clk 0:00:51.9]} 24... Rb8 {[%clk 0:01:00.1]} 25.
Bd7 {[%clk 0:00:42.5]} 25... Nc3 {[%clk 0:00:54.9]} 26. Rb2 {[%clk 0:00:36.9]}
26... Rxa3 {[%clk 0:00:55.9]} 27. Bxc6 {[%clk 0:00:18.2]} 27... Bxc6 {[%clk
0:00:42.9]} 28. Bc5 {[%clk 0:00:14.3]} 28... Rxa1 {[%clk 0:00:25.2]} 29. Rxb8+
{[%clk 0:00:15.1]} 29... Qxb8 {[%clk 0:00:27.1]} 30. Qxa1 {[%clk 0:00:16]} 30...
Nxe2+ {[%clk 0:00:28.5]} 31. Kg2 {[%clk 0:00:17.3]} 31... Qb7 {[%clk 0:00:26.8]}
32. Qa3 {[%clk 0:00:15.7]} 32... Nc3 {[%clk 0:00:27.7]} 33. Bxd4 {[%clk
0:00:13.9]} 33... Bxf3+ {[%clk 0:00:27.7]} 34. Kh3 {[%clk 0:00:14.6]} 34... Qd7+
{[%clk 0:00:28.8]} 0-1

[Event "*** Titled Tuesday Blitz"]
[Site "Chess.com"]
[Date "2018.09.04"]
[Round "9"]
[White "mjray79"]
[Black "Synctel"]
[Result "0-1"]
[WhiteElo "2029"]
[BlackElo "1903"]
[TimeControl "180+2"]
[EndTime "15:39:52 PDT"]
[Termination "Synctel won by resignation"]

1. d4 {[%clk 0:03:01.9]} 1... Nf6 {[%clk 0:02:58.5]} 2. c4 {[%clk 0:03:01.9]}
2... e6 {[%clk 0:02:59.8]} 3. g3 {[%clk 0:03:02]} 3... Bb4+ {[%clk 0:02:59.7]}
4. Bd2 {[%clk 0:03:02.3]} 4... Qe7 {[%clk 0:03:01.1]} 5. Nf3 {[%clk 0:03:01]}
5... Nc6 {[%clk 0:02:58.1]} 6. Bg2 {[%clk 0:03:01]} 6... Bxd2+ {[%clk
0:02:58.7]} 7. Nbxd2 {[%clk 0:02:57.9]} 7... O-O {[%clk 0:02:57.6]} 8. O-O
{[%clk 0:02:57.7]} 8... d6 {[%clk 0:02:59]} 9. Rc1 {[%clk 0:02:51.7]} 9... e5
{[%clk 0:02:55.4]} 10. d5 {[%clk 0:02:51.8]} 10... Nb8 {[%clk 0:02:51.3]} 11. e4
{[%clk 0:02:51.5]} 11... a5 {[%clk 0:02:44.7]} 12. a3 {[%clk 0:02:43.2]} 12...
Na6 {[%clk 0:02:44.4]} 13. Re1 {[%clk 0:02:36.2]} 13... Nc5 {[%clk 0:02:40.9]}
14. Qc2 {[%clk 0:02:36.3]} 14... a4 {[%clk 0:02:37.1]} 15. Ra1 {[%clk 0:02:28]}
15... Bd7 {[%clk 0:02:33]} 16. Nh4 {[%clk 0:02:10.3]} 16... g6 {[%clk
0:02:12.6]} 17. f4 {[%clk 0:01:57.5]} 17... exf4 {[%clk 0:02:10]} 18. gxf4
{[%clk 0:01:57.5]} 18... Nh5 {[%clk 0:02:10.5]} 19. Ndf3 {[%clk 0:01:30.2]}
19... Nxf4 {[%clk 0:02:03.5]} 20. e5 {[%clk 0:01:28.8]} 20... dxe5 {[%clk
0:01:25.6]} 21. Rxe5 {[%clk 0:01:22.8]} 21... Qf6 {[%clk 0:01:26.9]} 22. Qc3
{[%clk 0:00:38.4]} 22... Nxg2 {[%clk 0:01:22.8]} 23. Kxg2 {[%clk 0:00:36.1]}
23... Bg4 {[%clk 0:00:42.7]} 24. Rf1 {[%clk 0:00:19.1]} 24... Bxf3+ {[%clk
0:00:42.4]} 25. Nxf3 {[%clk 0:00:18]} 25... Nd7 {[%clk 0:00:43.2]} 26. Re3
{[%clk 0:00:18.2]} 26... Qxc3 {[%clk 0:00:42.4]} 27. Rxc3 {[%clk 0:00:19]} 27...
Rfe8 {[%clk 0:00:35.3]} 28. Nd4 {[%clk 0:00:18.8]} 28... Ne5 {[%clk 0:00:32.9]}
29. c5 {[%clk 0:00:17.7]} 29... Rad8 {[%clk 0:00:31.4]} 30. Nb5 {[%clk
0:00:18.1]} 30... Rxd5 {[%clk 0:00:31.8]} 31. Nxc7 {[%clk 0:00:17.8]} 31... Rd2+
{[%clk 0:00:33.4]} 32. Kg3 {[%clk 0:00:18]} 32... Re7 {[%clk 0:00:31.5]} 33. Nb5
{[%clk 0:00:18]} 33... h5 {[%clk 0:00:30.6]} 34. b3 {[%clk 0:00:16.8]} 34... g5
{[%clk 0:00:30]} 35. Nd6 {[%clk 0:00:16.6]} 35... h4+ {[%clk 0:00:29.4]} 36. Kh3
{[%clk 0:00:16.6]} 36... g4+ {[%clk 0:00:25.8]} 37. Kxh4 {[%clk 0:00:17]} 37...
Rxh2+ {[%clk 0:00:27.1]} 38. Kg3 {[%clk 0:00:17.8]} 38... Rh3+ {[%clk 0:00:27]}
0-1

[Event "*** Titled Tuesday Blitz"]
[Site "Chess.com"]
[Date "2018.09.04"]
[Round "9"]
[White "ramses135"]
[Black "gmjlh"]
[Result "0-1"]
[WhiteElo "2541"]
[BlackElo "2723"]
[TimeControl "180+2"]
[EndTime "15:39:56 PDT"]
[Termination "gmjlh won on time"]

1. e4 {[%clk 0:03:01.9]} 1... c6 {[%clk 0:03:00.5]} 2. d4 {[%clk 0:03:02.6]}
2... d5 {[%clk 0:03:00.7]} 3. Nc3 {[%clk 0:03:04.5]} 3... dxe4 {[%clk
0:03:01.1]} 4. Nxe4 {[%clk 0:03:06.4]} 4... Nf6 {[%clk 0:03:02.1]} 5. Nxf6+
{[%clk 0:03:07.2]} 5... exf6 {[%clk 0:03:04]} 6. c3 {[%clk 0:03:08.3]} 6... Bd6
{[%clk 0:03:03.8]} 7. Bd3 {[%clk 0:03:09.3]} 7... O-O {[%clk 0:03:04.4]} 8. Qc2
{[%clk 0:03:10.7]} 8... Re8+ {[%clk 0:03:03.3]} 9. Ne2 {[%clk 0:03:11.4]} 9...
h5 {[%clk 0:03:02.6]} 10. Be3 {[%clk 0:03:02.3]} 10... Nd7 {[%clk 0:02:58]} 11.
O-O-O {[%clk 0:03:02.9]} 11... Nf8 {[%clk 0:02:58.3]} 12. Kb1 {[%clk 0:02:36.5]}
12... Be6 {[%clk 0:02:51.4]} 13. Nf4 {[%clk 0:02:28]} 13... Bxf4 {[%clk
0:02:44.6]} 14. Bxf4 {[%clk 0:02:29.9]} 14... b5 {[%clk 0:02:45.5]} 15. f3
{[%clk 0:02:20.2]} 15... Bd5 {[%clk 0:02:43.9]} 16. Rde1 {[%clk 0:02:08.2]}
16... Qd7 {[%clk 0:02:42.9]} 17. Bf5 {[%clk 0:02:02.3]} 17... Ne6 {[%clk
0:02:29.1]} 18. Bd2 {[%clk 0:01:50.8]} 18... a5 {[%clk 0:02:27.1]} 19. Rhg1
{[%clk 0:01:40.1]} 19... g6 {[%clk 0:01:32.8]} 20. g4 {[%clk 0:00:55.1]} 20...
Kf8 {[%clk 0:00:21.3]} 21. Be4 {[%clk 0:00:33.4]} 21... hxg4 {[%clk 0:00:15.5]}
22. fxg4 {[%clk 0:00:30.7]} 22... c5 {[%clk 0:00:16.9]} 23. Bh6+ {[%clk
0:00:25.5]} 23... Kg8 {[%clk 0:00:17.5]} 24. dxc5 {[%clk 0:00:18.7]} 24... Nxc5
{[%clk 0:00:17.6]} 25. Bxd5 {[%clk 0:00:07.7]} 25... Qxd5 {[%clk 0:00:18]} 26.
h4 {[%clk 0:00:03.6]} 26... Ne4 {[%clk 0:00:14.2]} 27. Be3 {[%clk 0:00:03.5]}
27... Rac8 {[%clk 0:00:13.8]} 28. Bd4 {[%clk 0:00:02.9]} 28... b4 {[%clk
0:00:13.3]} 29. Qb3 {[%clk 0:00:03.2]} 29... Nd2+ {[%clk 0:00:13.6]} 0-1

[Event "*** Titled Tuesday Blitz"]
[Site "Chess.com"]
[Date "2018.09.04"]
[Round "9"]
[White "xberli"]
[Black "Blagorod"]
[Result "1-0"]
[WhiteElo "2522"]
[BlackElo "2008"]
[TimeControl "180+2"]
[EndTime "15:39:56 PDT"]
[Termination "xberli won by checkmate"]

1. e4 {[%clk 0:03:01.9]} 1... e5 {[%clk 0:03:00.6]} 2. Nf3 {[%clk 0:03:02.9]}
2... Nf6 {[%clk 0:03:01.5]} 3. Nxe5 {[%clk 0:03:03.3]} 3... d6 {[%clk
0:03:02.5]} 4. Nf3 {[%clk 0:03:04.9]} 4... Nxe4 {[%clk 0:03:03.5]} 5. Nc3 {[%clk
0:03:06.5]} 5... Nxc3 {[%clk 0:03:04.2]} 6. dxc3 {[%clk 0:03:08.4]} 6... Be7
{[%clk 0:03:05.1]} 7. Be3 {[%clk 0:03:10]} 7... Nc6 {[%clk 0:03:04.5]} 8. Bc4
{[%clk 0:03:11.4]} 8... Bf5 {[%clk 0:03:00.6]} 9. Qd2 {[%clk 0:03:12.3]} 9...
Qd7 {[%clk 0:02:56]} 10. O-O-O {[%clk 0:03:12.9]} 10... Bg6 {[%clk 0:02:55.5]}
11. h4 {[%clk 0:03:12.5]} 11... h5 {[%clk 0:02:53]} 12. Kb1 {[%clk 0:02:59.9]}
12... O-O-O {[%clk 0:02:53.3]} 13. Bd5 {[%clk 0:02:53.1]} 13... Kb8 {[%clk
0:02:52.6]} 14. Qe2 {[%clk 0:02:53.1]} 14... Bf6 {[%clk 0:02:42.4]} 15. Qb5
{[%clk 0:02:53.1]} 15... a6 {[%clk 0:02:37.3]} 16. Qa4 {[%clk 0:02:49.5]} 16...
Ne7 {[%clk 0:02:09.1]} 17. Qxd7 {[%clk 0:02:46]} 17... Rxd7 {[%clk 0:02:09.7]}
18. Bb3 {[%clk 0:02:46.8]} 18... Nc6 {[%clk 0:02:01.3]} 19. Bg5 {[%clk 0:02:45]}
19... Bxg5 {[%clk 0:01:51.5]} 20. Nxg5 {[%clk 0:02:46.9]} 20... Re8 {[%clk
0:01:46.6]} 21. Rhe1 {[%clk 0:02:43.3]} 21... Rde7 {[%clk 0:01:45.3]} 22. Rxe7
{[%clk 0:02:44]} 22... Rxe7 {[%clk 0:01:46.5]} 23. Kc1 {[%clk 0:02:45.6]} 23...
Kc8 {[%clk 0:01:38.9]} 24. Kd2 {[%clk 0:02:45.8]} 24... Kd8 {[%clk 0:01:39.6]}
25. Re1 {[%clk 0:02:46.1]} 25... Rxe1 {[%clk 0:01:31.1]} 26. Kxe1 {[%clk
0:02:48]} 26... Ke7 {[%clk 0:01:32.1]} 27. Kd2 {[%clk 0:02:49.2]} 27... Na5
{[%clk 0:01:13.2]} 28. Bd5 {[%clk 0:02:37.5]} 28... c6 {[%clk 0:01:13.4]} 29.
Bf3 {[%clk 0:02:37.8]} 29... Nc4+ {[%clk 0:01:11.8]} 30. Kc1 {[%clk 0:02:38.7]}
30... Ne5 {[%clk 0:01:10.2]} 31. Be2 {[%clk 0:02:37.3]} 31... f6 {[%clk
0:01:00.9]} 32. Nh3 {[%clk 0:02:35.7]} 32... Ng4 {[%clk 0:00:50.1]} 33. a4
{[%clk 0:02:28.8]} 33... Bf7 {[%clk 0:00:46.5]} 34. a5 {[%clk 0:02:25.6]} 34...
g6 {[%clk 0:00:46]} 35. Kd2 {[%clk 0:02:24.2]} 35... d5 {[%clk 0:00:38.9]} 36.
Bxg4 {[%clk 0:02:21.4]} 36... hxg4 {[%clk 0:00:39.3]} 37. Nf4 {[%clk 0:02:22.9]}
37... f5 {[%clk 0:00:35.5]} 38. Ke3 {[%clk 0:02:18.4]} 38... Kf6 {[%clk
0:00:35]} 39. Kd4 {[%clk 0:02:12.1]} 39... g5 {[%clk 0:00:36.1]} 40. hxg5+
{[%clk 0:02:13.6]} 40... Kxg5 {[%clk 0:00:37.2]} 41. g3 {[%clk 0:02:14.7]} 41...
Kf6 {[%clk 0:00:23.4]} 42. b4 {[%clk 0:02:12.4]} 42... Be6 {[%clk 0:00:20.9]}
43. Kc5 {[%clk 0:02:04.1]} 43... Ke5 {[%clk 0:00:21.2]} 44. Nxe6 {[%clk
0:02:04.7]} 44... Kxe6 {[%clk 0:00:22.1]} 45. Kb6 {[%clk 0:02:06.3]} 45... Ke5
{[%clk 0:00:23.5]} 46. Kxb7 {[%clk 0:02:07.4]} 46... Ke4 {[%clk 0:00:25.1]} 47.
Kxc6 {[%clk 0:02:06.7]} 47... Kf3 {[%clk 0:00:26.6]} 48. b5 {[%clk 0:02:06.5]}
48... axb5 {[%clk 0:00:26.1]} 49. a6 {[%clk 0:02:08.4]} 49... Kxf2 {[%clk
0:00:27.5]} 50. a7 {[%clk 0:02:09.6]} 50... Kxg3 {[%clk 0:00:28.8]} 51. a8=Q
{[%clk 0:02:11]} 51... f4 {[%clk 0:00:29.8]} 52. Qb8 {[%clk 0:02:10.5]} 52...
Kf3 {[%clk 0:00:29.7]} 53. Qxb5 {[%clk 0:02:09.4]} 53... g3 {[%clk 0:00:24.1]}
54. Qxd5+ {[%clk 0:02:10.3]} 54... Kf2 {[%clk 0:00:24.8]} 55. Qd2+ {[%clk
0:02:10.8]} 55... Kf3 {[%clk 0:00:23.4]} 56. c4 {[%clk 0:02:09.5]} 56... g2
{[%clk 0:00:22.7]} 57. Qe1 {[%clk 0:02:10.5]} 57... Kg4 {[%clk 0:00:21.6]} 58.
Kd5 {[%clk 0:02:10.1]} 58... f3 {[%clk 0:00:22.4]} 59. Ke4 {[%clk 0:02:10.8]}
59... Kh3 {[%clk 0:00:22.4]} 60. Kf4 {[%clk 0:02:06.6]} 60... Kh2 {[%clk
0:00:21.4]} 61. Qh4+ {[%clk 0:02:01.7]} 61... Kg1 {[%clk 0:00:21.6]} 62. Kxf3
{[%clk 0:02:02.7]} 62... Kf1 {[%clk 0:00:21.5]} 63. Qf2# {[%clk 0:02:03.5]} 1-0

[Event "*** Titled Tuesday Blitz"]
[Site "Chess.com"]
[Date "2018.09.04"]
[Round "9"]
[White "inegrepus"]
[Black "JSMastropiero"]
[Result "1/2-1/2"]
[WhiteElo "2208"]
[BlackElo "2340"]
[TimeControl "180+2"]
[EndTime "15:39:56 PDT"]
[Termination "Game drawn by repetition"]

1. d4 {[%clk 0:02:53]} 1... Nf6 {[%clk 0:02:59.4]} 2. c4 {[%clk 0:02:53.7]} 2...
e6 {[%clk 0:02:58.6]} 3. Nc3 {[%clk 0:02:54.3]} 3... Bb4 {[%clk 0:02:58.5]} 4.
e3 {[%clk 0:02:55.7]} 4... c5 {[%clk 0:02:57.7]} 5. Ne2 {[%clk 0:02:56.8]} 5...
cxd4 {[%clk 0:02:56.9]} 6. exd4 {[%clk 0:02:58.6]} 6... d5 {[%clk 0:02:56.3]} 7.
a3 {[%clk 0:02:58.8]} 7... Be7 {[%clk 0:02:56.1]} 8. cxd5 {[%clk 0:02:56.9]}
8... Nxd5 {[%clk 0:02:50.7]} 9. Ng3 {[%clk 0:02:55]} 9... O-O {[%clk 0:02:48.9]}
10. Bd3 {[%clk 0:02:55.1]} 10... Nc6 {[%clk 0:02:47.6]} 11. Be3 {[%clk
0:02:54.5]} 11... h6 {[%clk 0:02:28.9]} 12. O-O {[%clk 0:02:53.2]} 12... b6
{[%clk 0:02:30]} 13. Qh5 {[%clk 0:02:49]} 13... Nf6 {[%clk 0:02:26.7]} 14. Qe2
{[%clk 0:02:46]} 14... Bb7 {[%clk 0:02:25.4]} 15. Rad1 {[%clk 0:02:46.1]} 15...
Qd7 {[%clk 0:02:18.5]} 16. Bb1 {[%clk 0:02:45.6]} 16... Rfd8 {[%clk 0:02:15.7]}
17. Qc2 {[%clk 0:02:46.2]} 17... Rac8 {[%clk 0:02:13.7]} 18. Nh5 {[%clk
0:02:46.6]} 18... Kf8 {[%clk 0:01:58.1]} 19. Nxf6 {[%clk 0:02:46.6]} 19... Bxf6
{[%clk 0:01:58.6]} 20. Qh7 {[%clk 0:02:44]} 20... Ne7 {[%clk 0:01:53.1]} 21.
Qh8+ {[%clk 0:02:13.9]} 21... Ng8 {[%clk 0:01:51.6]} 22. Bh7 {[%clk 0:02:13.3]}
22... Ke7 {[%clk 0:01:51.3]} 23. d5 {[%clk 0:02:05.6]} 23... Bxc3 {[%clk
0:01:32.3]} 24. bxc3 {[%clk 0:02:04.9]} 24... Bxd5 {[%clk 0:01:30.9]} 25. c4
{[%clk 0:02:02.3]} 25... Rxc4 {[%clk 0:01:30.3]} 26. Bxg8 {[%clk 0:02:02.8]}
26... Rg4 {[%clk 0:01:22.8]} 27. f3 {[%clk 0:01:58.2]} 27... Rg6 {[%clk
0:01:21.2]} 28. Qh7 {[%clk 0:01:44.2]} 28... Qe8 {[%clk 0:01:19.2]} 29. Bd2
{[%clk 0:01:32.1]} 29... a5 {[%clk 0:01:13.4]} 30. Be3 {[%clk 0:01:10.6]} 30...
Qxg8 {[%clk 0:01:04.6]} 31. Qxg8 {[%clk 0:01:10.7]} 31... Rxg8 {[%clk
0:01:05.8]} 32. Bxb6 {[%clk 0:01:12.4]} 32... a4 {[%clk 0:01:06.2]} 33. Bc5+
{[%clk 0:01:12.5]} 33... Kf6 {[%clk 0:01:06.8]} 34. Bd4+ {[%clk 0:01:13.1]}
34... Ke7 {[%clk 0:01:07.3]} 35. Bc5+ {[%clk 0:01:14.1]} 35... Kd7 {[%clk
0:01:07.6]} 36. Bb4 {[%clk 0:01:13.7]} 36... Rc8 {[%clk 0:01:02.3]} 37. Kf2
{[%clk 0:01:08.8]} 37... f5 {[%clk 0:00:55.5]} 38. Rc1 {[%clk 0:01:09.5]} 38...
Rf6 {[%clk 0:00:45]} 39. Rxc8 {[%clk 0:01:10.3]} 39... Kxc8 {[%clk 0:00:46.9]}
40. Rc1+ {[%clk 0:01:11.4]} 40... Kb7 {[%clk 0:00:45.8]} 41. Rc5 {[%clk
0:01:04.2]} 41... Rf7 {[%clk 0:00:41.7]} 42. Rb5+ {[%clk 0:01:04.3]} 42... Kc6
{[%clk 0:00:42.5]} 43. Rc5+ {[%clk 0:01:02.8]} 43... Kd7 {[%clk 0:00:42.9]} 44.
Ra5 {[%clk 0:01:02.9]} 44... Bb3 {[%clk 0:00:40.9]} 45. Ra7+ {[%clk 0:01:03.8]}
45... Ke8 {[%clk 0:00:42.2]} 46. Ra8+ {[%clk 0:01:03.5]} 46... Kd7 {[%clk
0:00:43.4]} 47. Ra7+ {[%clk 0:01:04.4]} 47... Ke8 {[%clk 0:00:44.6]} 48. Ra8+
{[%clk 0:01:05.6]} 48... Kd7 {[%clk 0:00:45.8]} 49. Ra7+ {[%clk 0:01:07]} 49...
Ke8 {[%clk 0:00:47.1]} 50. Ra8+ {[%clk 0:01:07]} 50... Kd7 {[%clk 0:00:48.3]}
51. Ra7+ {[%clk 0:01:08]} 51... Ke8 {[%clk 0:00:49.7]} 1/2-1/2